bitfinex/quotes_ETHUSD_20250622
["timestamp","ask_amount","ask_price","bid_price","bid_amount"]
[1750567189794,7.38100051,2283.1,2283.0,3.17812089]
[1750567190130,7.38100051,2283.1,2282.9,3.17817749]
[1750567190327,7.38100051,2283.1,2283.0,3.17812089]
[1750567191101,7.60997555,2283.1,2283.0,3.17812089]
[1750567191303,0.26197555,2283.1,2283.0,3.17812089]
[1750567191510,0.22897504,2283.1,2283.0,3.17812089]
[1750567192018,0.22897504,2283.1,2283.0,0.55]
[1750567192229,0.26197555,2283.1,2283.0,0.55]
[1750567192429,2.02297311,2283.1,2282.7,0.7959]
[1750567192629,2.88998379,2283.1,2282.8,0.55]
[1750567192938,1.01917555,2283.1,2282.8,2.62833803]
[1750567193145,1.01917555,2283.1,2282.9,0.55]
[1750567193310,2.11867628,2283.1,2282.9,0.55]
[1750567193941,1.36147628,2283.1,2282.7,3.17842804]
[1750567194246,7.347,2283.0,2282.9,0.55]
[1750567194412,7.347,2283.0,2282.7,3.1784162]
[1750567194750,0.03300051,2282.9,2282.7,0.55]
[1750567195245,0.79020051,2282.9,2282.3,0.7881]
[1750567195422,3.70489769,2282.8,2282.4,10.0]
[1750567195622,0.03300051,2282.7,2282.5,0.55]
[1750567195842,37.347,2282.6,2282.5,0.55]
[1750567196211,30.0,2282.5,2282.1,0.7778]
[1750567196416,30.0,2282.2,2282.0,0.2250067]
[1750567196615,30.0,2282.2,2281.1,0.7778]
[1750567196616,40.0,2281.9,2281.1,3.40807201]
[1750567196815,2.66252117,2281.8,2281.2,2.63019463]
[1750567197014,0.7962,2281.6,2281.1,2.63027133]
[1750567197260,7.38000051,2281.5,2281.2,0.55]
[1750567197413,7.38000051,2281.5,2281.0,2.63041289]
[1750567197613,7.38000051,2281.5,2281.2,0.55]
[1750567197819,30.0,2281.4,2281.1,2.63030644]
[1750567198015,0.03300051,2281.3,2281.1,2.63030644]
[1750567198215,0.03300051,2281.4,2281.1,2.63023398]
[1750567198454,0.03300051,2281.4,2281.0,2.63032097]
[1750567198455,30.0,2281.3,2281.0,2.63032097]
[1750567198638,30.0,2281.4,2280.9,2.63045503]
[1750567198849,3.36876099,2281.3,2280.9,2.63045503]
[1750567199050,0.03300051,2281.2,2281.0,0.55]
[1750567199249,7.349,2281.1,2280.9,12.63052832]
[1750567199446,7.349,2281.1,2281.0,0.55]
[1750567199659,7.349,2281.1,2280.9,2.63052832]
[1750567199863,7.349,2281.1,2281.0,0.55]
[1750567200035,7.349,2281.1,2280.5,10.7778]
[1750567200243,0.03300051,2281.0,2280.5,10.7778]
[1750567200582,7.38100051,2281.0,2280.5,0.7778]
[1750567200886,7.38100051,2281.0,2280.2,0.7778]
[1750567200887,30.0,2280.8,2280.2,0.7778]
[1750567201050,7.348,2280.7,2280.6,2.6308866]
[1750567201226,7.348,2280.8,2280.5,2.63098265]
[1750567201446,7.348,2280.8,2280.4,2.63108795]
[1750567201447,0.03300051,2280.7,2280.4,2.63108795]
[1750567201675,0.03300051,2280.7,2280.4,10.0]
[1750567201878,30.0,2281.3,2280.9,0.55]
[1750567202065,40.0,2281.1,2280.9,0.55]
[1750567202253,0.03300051,2281.0,2280.4,2.83144202]
[1750567202583,0.03300051,2281.0,2280.7,3.18071614]
[1750567202750,0.03300051,2281.1,2280.9,2.63047715]
[1750567202948,7.35,2281.0,2280.9,3.18047715]
[1750567203172,7.35,2281.2,2281.1,3.18022879]
[1750567203499,8.16792005,2281.2,2280.6,3.1808866]
[1750567203803,30.0,2281.0,2280.7,2.63077125]
[1750567203958,0.03300051,2280.9,2280.8,2.63065591]
[1750567204157,40.0,2281.0,2280.8,2.63065591]
[1750567204385,0.03300051,2280.9,2280.8,0.55]
[1750567204550,40.0,2281.0,2280.8,3.18064488]
[1750567204751,0.03300051,2280.9,2280.8,3.18064488]
[1750567204985,30.0,2281.0,2280.8,3.18060455]
[1750567205152,0.03300051,2280.9,2280.8,0.55]
[1750567205368,7.351,2280.9,2280.8,0.55]
[1750567205547,11.91080056,2280.9,2280.6,2.63087873]
[1750567205860,0.7884,2280.9,2280.6,2.63087873]
[1750567206051,37.386,2281.0,2280.7,0.55]
[1750567206391,10.03300051,2280.9,2280.6,0.55]
[1750567206552,40.0,2280.8,2280.6,3.18087997]
[1750567206752,40.0,2280.8,2280.1,12.63136205]
[1750567206753,30.0,2280.6,2280.1,0.8196]
[1750567207064,7.42800051,2280.5,2280.3,2.63117027]
[1750567207272,7.398,2280.4,2280.3,2.63117027]
[1750567207450,7.43100051,2280.4,2280.3,2.63117027]
[1750567207783,10.0,2280.6,2280.4,2.63109873]
[1750567208084,0.22901279,2280.9,2280.8,13.18065591]
[1750567208284,1.27996152,2281.4,2281.3,0.55]
[1750567208583,5.50892368,2281.4,2280.9,0.55]
[1750567208749,5.50892368,2281.4,2281.1,3.18022584]
[1750567208953,30.0,2281.3,2281.0,0.55]
[1750567209282,30.0,2281.3,2280.8,4.598595]
[1750567209283,30.0,2281.2,2280.8,4.598595]
[1750567209453,40.0,2281.0,2280.8,11.968]
[1750567209652,30.0,2281.0,2280.8,14.5986329]
[1750567210078,30.0,2281.0,2280.8,1.968]
[1750567210283,30.0,2281.0,2280.8,11.968]
[1750567210468,0.03300051,2280.9,2280.8,2.518]
[1750567210669,40.0,2280.9,2280.8,5.14864568]
[1750567210876,30.0,2281.0,2280.8,5.14864568]
[1750567211090,0.03300051,2280.9,2280.8,5.14864568]
[1750567211288,40.0,2280.9,2280.8,5.14864568]
[1750567211498,30.0,2281.0,2280.8,5.14864568]
[1750567211685,0.03300051,2280.9,2280.8,5.14864568]
[1750567211891,0.03300051,2280.9,2280.8,2.518]
[1750567212099,40.0,2280.9,2280.7,2.63074829]
[1750567212403,7.395,2280.8,2280.7,2.63074829]
[1750567212570,7.395,2280.8,2280.6,3.1808314]
[1750567212769,7.42800051,2280.8,2280.6,3.1808314]
[1750567212974,8.13780005,2280.8,2280.6,3.1808314]
[1750567213803,8.13780005,2280.8,2280.7,2.63077125]
[1750567214577,8.13880005,2280.8,2280.7,2.63077125]
[1750567215175,30.0,2281.0,2280.9,2.63053302]
[1750567215505,30.0,2281.0,2280.9,2.63054057]
[1750567215674,7.391,2281.0,2280.9,2.63054057]
[1750567216104,40.0,2281.2,2281.0,2.63042525]
[1750567216321,7.391,2281.1,2281.0,2.63042525]
[1750567216524,17.391,2281.1,2281.0,3.18042525]
[1750567216733,7.391,2281.1,2281.0,3.18042525]
[1750567216938,17.391,2281.1,2281.0,3.18042525]
[1750567217231,7.391,2281.1,2281.0,3.18042525]
[1750567217430,17.391,2281.1,2281.0,3.18042525]
[1750567217627,7.391,2281.1,2281.0,3.18042525]
[1750567217933,17.391,2281.1,2281.0,3.18042525]
[1750567218132,7.391,2281.1,2281.0,0.55]
[1750567218441,8.64745824,2281.1,2280.9,2.63050143]
[1750567218615,0.03300051,2281.0,2280.9,3.18050143]
[1750567218935,0.03300051,2281.0,2280.7,3.18070839]
[1750567219255,1.48543335,2281.1,2280.9,3.18054057]
[1750567219392,1.51843386,2281.1,2281.0,2.63042525]
[1750567219599,8.90243386,2281.1,2281.0,2.63042525]
[1750567219813,8.86943335,2281.1,2281.0,2.63042525]
[1750567220757,8.86943335,2281.1,2280.9,3.18046539]
[1750567220900,0.91994385,2281.0,2280.8,3.18060395]
[1750567221297,30.0,2280.9,2280.8,3.18060395]
[1750567221502,30.0,2280.9,2280.8,0.55]
[1750567222052,30.0,2280.9,2280.6,2.63088057]
[1750567222344,11.29629484,2280.8,2280.5,14.5999299]
[1750567222635,7.379,2280.8,2280.6,3.18088334]
[1750567222832,7.379,2280.8,2280.7,3.18077125]
[1750567223133,7.379,2280.8,2280.7,0.55]
[1750567223348,7.379,2280.8,2280.7,3.18077125]
[1750567223500,7.379,2280.8,2280.6,2.63082916]
[1750567223697,8.20889438,2280.8,2280.7,2.63077125]
[1750567223937,8.20889438,2280.8,2280.7,3.18077125]
[1750567224145,0.7956,2280.7,2280.5,1.969]
[1750567224341,0.03300051,2280.6,2280.5,5.15000183]
[1750567224550,0.03300051,2280.6,2280.5,2.519]
[1750567224852,0.93675,2280.6,2280.5,2.519]
[1750567225059,0.93675,2280.6,2280.5,5.15000197]
[1750567225464,0.03300051,2280.7,2280.6,3.18080275]
[1750567225946,8.20889438,2280.8,2280.7,2.63077125]
[1750567226451,8.20889438,2280.8,2280.7,3.18077125]
[1750567226753,8.20389438,2280.8,2280.7,3.18077125]
[1750567227055,8.20389438,2280.8,2280.7,0.55]
[1750567227452,8.20389438,2280.8,2280.4,2.63108349]
[1750567227453,0.7658,2280.7,2280.4,2.63103659]
[1750567227666,40.0,2280.6,2280.5,3.18094799]
[1750567227854,40.0,2280.6,2280.5,0.55]
[1750567227855,30.0,2280.6,2280.5,0.55]
[1750567228059,30.0,2280.6,2280.2,2.63129035]
[1750567228262,7.42300051,2280.5,2280.1,10.0]
[1750567228556,8.32391951,2280.5,2280.2,2.63134812]
[1750567228734,8.290919,2280.5,2280.3,0.55]
[1750567228920,0.03300051,2280.4,2280.3,0.55]
[1750567229118,0.03300051,2280.4,2280.0,22.63149568]
[1750567229335,0.7658,2280.3,2280.0,12.63149297]
[1750567229545,7.42000051,2280.2,2280.0,12.63149297]
[1750567229857,7.42000051,2280.2,2280.1,0.55]
[1750567230055,7.42000051,2280.2,2280.1,3.18146353]
[1750567230360,30.0,2280.4,2280.3,3.18123273]
[1750567230536,7.393,2280.4,2280.3,3.18123273]
[1750567230945,7.393,2280.4,2280.3,3.18116753]
[1750567231261,30.0,2280.6,2280.5,2.63100197]
[1750567231467,30.0,2280.5,2280.3,3.18117648]
[1750567232171,0.03300051,2280.4,2280.3,0.55]
[1750567232466,30.0,2280.4,2280.3,0.55]
[1750567232769,30.0,2280.4,2280.3,3.18123273]
[1750567232935,7.401,2280.4,2280.3,3.18123273]
[1750567233342,30.89791894,2280.5,2280.4,3.18111734]
[1750567233654,0.82038944,2280.7,2280.6,3.1808866]
[1750567233859,37.4,2280.7,2280.6,0.55]
[1750567234242,37.62895096,2280.7,2280.6,0.55]
[1750567234568,37.62895096,2280.7,2280.2,2.63128747]
[1750567234770,30.0,2280.5,2280.3,0.55]
[1750567234962,7.42900051,2280.4,2280.3,0.55]
[1750567235173,7.42900051,2280.4,2280.3,3.18123273]
[1750567235365,30.0,2280.5,2280.4,3.18111734]
[1750567235559,37.397,2280.5,2280.4,3.18111734]
[1750567235866,37.397,2280.5,2280.3,2.63115692]
[1750567235867,30.8251,2280.4,2280.3,0.55]
[1750567236069,0.8251,2280.4,2280.0,12.631504]
[1750567236372,10.03300051,2280.3,2280.1,2.6313582]
[1750567236578,7.396,2280.2,2280.1,2.6313582]
[1750567236761,30.0,2280.5,2280.3,2.63118001]
[1750567237070,34.10870515,2280.5,2280.3,2.63116992]
[1750567237273,37.42900051,2280.4,2280.3,2.63116992]
[1750567237474,37.396,2280.4,2280.3,2.63116992]
[1750567237870,30.0,2280.4,2280.2,3.18128732]
[1750567238074,4.10870515,2280.5,2280.3,2.63123273]
[1750567238242,7.392,2280.4,2280.3,3.50830356]
[1750567238442,30.0,2280.4,2280.3,3.50830356]
[1750567238671,37.391,2280.4,2280.3,3.50830356]
[1750567238874,30.0,2280.3,2280.2,4.05840002]
[1750567239075,30.0,2280.3,2280.1,4.05857134]
[1750567239247,7.391,2280.2,2280.1,0.55]
[1750567240075,4.56179712,2280.7,2280.1,4.05861804]
[1750567240281,30.0,2280.5,2280.1,4.05861804]
[1750567240485,40.0,2280.3,2280.1,3.50861804]
[1750567240688,7.42100051,2280.2,2280.1,3.50861804]
[1750567241263,7.42100051,2280.2,2280.0,13.50871137]
[1750567242079,7.42100051,2280.2,2280.1,3.50861804]
[1750567242381,7.388,2280.2,2280.1,3.50861804]
[1750567243275,7.42100051,2280.2,2280.1,3.50861804]
[1750567243663,7.388,2280.2,2280.1,3.50861804]
[1750567244381,37.381,2280.4,2280.3,4.05831031]
[1750567244684,30.2209951,2280.6,2280.5,3.50799239]
[1750567244885,37.5999951,2280.6,2280.5,3.50799239]
[1750567246500,37.5989951,2280.6,2280.5,3.50799239]
[1750567246691,30.2209951,2280.6,2280.5,3.50799239]
[1750567246888,37.5949951,2280.6,2280.5,3.50799239]
[1750567248301,30.0,2280.5,2280.2,3.50845814]
[1750567248470,7.40200051,2280.4,2280.2,3.50845814]
[1750567248797,7.40200051,2280.4,2280.1,3.5085535]
[1750567249099,7.40200051,2280.4,2280.0,10.0]
[1750567249297,30.0,2280.3,2280.0,10.0]
[1750567249477,30.0,2280.3,2280.0,13.50868994]
[1750567249478,7.40100051,2280.2,2280.0,13.50868994]
[1750567249677,7.40100051,2280.2,2280.1,3.50861804]
[1750567250606,0.2289685,2280.3,2280.2,4.05846416]
[1750567250901,7.5959685,2280.3,2280.2,4.05846416]
[1750567251268,0.2289685,2280.3,2280.2,4.05846416]
[1750567251468,0.2289685,2280.3,2280.2,16.61992745]
[1750567251776,13.40505415,2281.5,2280.2,16.61992745]
[1750567251777,35.27996152,2281.4,2281.3,3.50677245]
[1750567251982,30.0,2281.3,2281.2,4.05688757]
[1750567252396,30.0,2281.3,2280.8,10.0]
[1750567252702,12.87988073,2281.4,2281.0,3.50723366]
[1750567252703,30.0,2281.1,2281.0,3.50723366]
[1750567252905,7.368,2281.1,2281.0,4.05723366]
[1750567253065,7.368,2281.1,2280.9,3.50732391]
[1750567253670,30.0,2280.9,2280.3,0.7795]
[1750567253885,40.0,2280.7,2280.3,0.7795]
[1750567254083,0.03300051,2280.6,2280.5,3.50799718]
[1750567254415,30.0,2280.6,2280.5,3.50799718]
[1750567254599,30.0,2280.7,2280.6,3.50784881]
[1750567255003,30.0,2280.7,2280.5,4.05797651]
[1750567255212,7.40500051,2280.6,2280.5,4.05800263]
[1750567255919,8.02530346,2280.6,2280.5,0.55]
[1750567256215,7.99230295,2280.6,2280.5,0.55]
[1750567256612,30.0,2280.5,2280.2,5.48943635]
[1750567256912,7.99230295,2280.6,2280.2,5.48943635]
[1750567256913,0.03300051,2280.4,2280.2,5.48943635]
[1750567257076,7.368,2280.3,2280.2,5.48943635]
[1750567257275,7.368,2280.3,2280.2,6.03943635]
[1750567257604,7.368,2280.3,2280.2,5.48943635]
[1750567257802,7.368,2280.3,2280.2,6.03943635]
[1750567258413,7.368,2280.3,2280.2,4.05843635]
[1750567259082,30.62030295,2280.6,2280.5,3.50800263]
[1750567259280,37.364,2280.6,2280.5,3.50800263]
[1750567259512,30.0,2280.5,2280.4,3.50809834]
[1750567259729,30.0,2280.5,2280.3,4.05824391]
[1750567260098,30.0,2280.5,2280.2,4.0584195]
[1750567260315,0.03300051,2280.4,2280.2,4.0584195]
[1750567260622,7.362,2280.4,2280.3,0.55]
[1750567260837,0.7362,2280.4,2280.1,0.55]
[1750567261013,40.0,2280.7,2280.4,0.55]
[1750567261335,30.0,2280.5,2280.0,13.50875395]
[1750567261536,0.03300051,2280.4,2280.1,3.50855505]
[1750567261746,7.36,2280.3,2280.1,3.50855505]
[1750567262053,0.03300051,2280.2,2280.1,3.50855505]
[1750567262407,7.36,2280.3,2280.2,3.50846416]
[1750567263113,7.36,2280.3,2280.1,3.50856472]
[1750567263526,7.36,2280.3,2280.2,3.50846416]
[1750567263899,7.7900046,2280.3,2280.2,3.50846416]
[1750567264502,7.36,2280.3,2280.2,3.50846416]
[1750567264697,30.0,2280.7,2280.3,3.50831031]
[1750567264912,30.0,2280.5,2280.3,3.50831031]
[1750567265599,30.0,2280.5,2280.2,0.55]
[1750567265600,30.0,2280.3,2280.0,10.0]
[1750567265801,30.0,2280.3,2280.1,4.05846439]
[1750567266047,30.0,2280.3,2280.2,3.50846416]
[1750567266935,30.0,2280.3,2280.1,4.05856838]
[1750567267146,0.8079,2280.2,2280.1,4.05856838]
[1750567267454,30.0,2280.1,2280.0,13.50877192]
[1750567267657,37.36,2280.1,2280.0,10.0]
[1750567267800,41.57328903,2280.1,2280.0,10.0]
[1750567268515,11.57328903,2280.1,2280.0,10.0]
[1750567268717,7.36,2280.1,2280.0,10.0]
[1750567269035,17.36,2280.1,2280.0,10.0]
[1750567269234,7.36,2280.1,2280.0,10.0]
[1750567269436,17.36,2280.1,2280.0,13.50877192]
[1750567269738,30.0,2280.2,2280.0,14.05873584]
[1750567269922,7.36,2280.1,2280.0,14.05877192]
[1750567271550,7.361,2280.1,2280.0,14.05877192]
[1750567271757,37.361,2280.1,2280.0,10.55]
[1750567271958,38.24873158,2280.1,2280.0,10.0]
[1750567273153,38.24873158,2280.1,2280.0,5.0]
[1750567274952,39.07813158,2280.1,2280.0,5.0]
[1750567276365,43.07813158,2280.1,2280.0,5.0]
[1750567277275,39.07813158,2280.1,2280.0,5.0]
[1750567277471,31.71713158,2280.1,2280.0,5.0]
[1750567277774,39.07813158,2280.1,2280.0,5.0]
[1750567278438,31.71713158,2280.1,2280.0,5.0]
[1750567278637,38.24773158,2280.1,2280.0,5.0]
[1750567279448,39.03693158,2280.1,2280.0,5.0]
[1750567280377,43.03693158,2280.1,2280.0,5.0]
[1750567282738,35.67693158,2280.1,2280.0,5.0]
[1750567283243,42.24773158,2280.1,2280.0,5.0]
[1750567283657,34.88773158,2280.1,2280.0,5.0]
[1750567283976,42.24773158,2280.1,2280.0,5.0]
[1750567284173,34.88773158,2280.1,2280.0,5.0]
[1750567284344,42.24773158,2280.1,2280.0,5.0]
[1750567285083,34.88773158,2280.1,2280.0,5.0]
[1750567285283,42.24773158,2280.1,2280.0,5.0]
[1750567285441,38.24773158,2280.1,2280.0,8.50877192]
[1750567285642,0.67541529,2280.3,2280.2,3.50846416]
[1750567285842,4.67541529,2280.3,2280.2,3.50846416]
[1750567286057,12.03541529,2280.3,2280.2,3.50846416]
[1750567286256,30.0,2280.2,2280.1,3.50855684]
[1750567286685,30.0,2280.1,2280.0,5.0]
[1750567286908,37.359,2280.1,2280.0,5.0]
[1750567287112,38.1922,2280.1,2280.0,5.0]
[1750567288777,41.70081804,2280.1,2280.0,5.0]
[1750567289366,38.1922,2280.1,2280.0,5.0]
[1750567289610,42.58654887,2280.1,2280.0,5.0]
[1750567289770,45.19654887,2280.1,2280.0,5.0]
[1750567289967,48.70516691,2280.1,2280.0,5.0]
[1750567290218,45.19654887,2280.1,2280.0,5.0]
[1750567290386,48.70516691,2280.1,2280.0,5.0]
[1750567290809,3.50948964,2279.6,2279.0,0.7744]
[1750567291005,3.50929792,2279.7,2278.8,3.51061962]
[1750567291006,40.0,2279.3,2278.8,3.51061962]
[1750567291311,30.0,2279.1,2278.7,0.7744]
[1750567291514,30.0,2279.1,2278.6,3.51090513]
[1750567291515,40.0,2278.9,2278.6,3.51090513]
[1750567291732,7.39200051,2278.8,2278.5,0.7744]
[1750567291906,7.359,2278.7,2278.6,3.51090656]
[1750567292524,7.359,2278.7,2278.0,5.48279073]
[1750567292690,7.359,2278.7,2277.6,0.44706987]
[1750567292691,0.03300051,2278.6,2278.4,3.51123489]
[1750567292893,0.7676,2278.9,2278.2,3.5115442]
[1750567292894,10.03300051,2278.8,2278.7,3.51077368]
[1750567293093,30.0,2279.0,2278.8,3.51050768]
[1750567293290,7.359,2278.9,2278.8,4.06061222]
[1750567293913,0.03300051,2279.1,2278.8,4.06061247]
[1750567294096,7.359,2279.0,2278.8,0.55]
[1750567294298,10.22909209,2279.2,2278.8,0.55]
[1750567294299,7.359,2278.9,2278.8,4.06061477]
[1750567295528,7.359,2278.9,2278.8,3.51061477]
[1750567296524,10.0,2279.1,2278.6,0.7985]
[1750567296525,30.0,2279.1,2279.0,3.51031154]
[1750567296726,0.22909209,2279.2,2279.0,3.51031154]
[1750567296930,7.76839596,2279.1,2279.0,3.51031154]
[1750567297534,17.76839596,2279.1,2279.0,3.51031154]
[1750567297705,17.76839596,2279.1,2278.9,4.06042116]
[1750567297910,0.40939596,2279.0,2278.9,4.06042116]
[1750567298108,17.359,2279.1,2278.9,4.06042116]
[1750567298351,0.40945061,2279.0,2278.9,4.06042116]
[1750567298845,10.40945061,2279.0,2278.8,3.51055779]
[1750567299022,7.36,2278.9,2278.8,3.51055779]
[1750567300615,0.03300051,2279.1,2278.9,4.06046557]
[1750567300818,30.0,2279.1,2279.0,3.51031154]
[1750567301014,0.40927199,2279.1,2279.0,4.06031154]
[1750567301213,0.22909209,2279.2,2279.1,3.51015751]
[1750567301511,7.58909209,2279.2,2279.1,3.51015751]
[1750567301963,0.63835228,2279.2,2279.1,3.51015751]
[1750567302229,7.58909209,2279.2,2279.1,3.51015751]
[1750567302428,17.99837471,2279.2,2279.1,3.51015751]
[1750567302654,17.99837471,2279.2,2278.8,0.04387761]
[1750567302655,7.99837471,2279.2,2278.8,0.04387761]
[1750567302886,7.58909209,2279.2,2279.0,3.51024343]
[1750567303032,0.40929587,2279.1,2279.0,4.06024343]
[1750567303235,7.58909209,2279.2,2279.0,4.06024343]
[1750567303452,0.22909209,2279.2,2279.1,3.51015751]
[1750567303657,0.63832596,2279.2,2279.1,3.51015751]
[1750567303964,7.99832596,2279.2,2279.1,3.51015751]
[1750567304833,7.99832048,2279.2,2279.1,3.51015751]
[1750567305033,0.63832048,2279.2,2279.1,4.81515751]
[1750567305345,7.58809209,2279.2,2279.1,4.81515751]
[1750567305748,7.99735961,2279.2,2279.1,4.81515751]
[1750567306069,0.63835961,2279.2,2279.1,5.64770311]
[1750567306373,0.22909209,2279.2,2279.1,5.64770311]
[1750567306887,0.22909209,2279.2,2279.1,15.64770311]
[1750567307078,1.21885191,2279.4,2279.3,4.05984951]
[1750567307275,1.44786835,2279.4,2279.3,4.81364951]
[1750567307478,1.44786835,2279.4,2279.3,6.43310843]
[1750567307786,1.44786835,2279.4,2279.3,16.43310843]
[1750567311296,1.21885191,2279.4,2279.3,16.43310843]
[1750567312882,0.22899682,2279.7,2279.6,4.05938761]
[1750567313080,0.22899682,2279.7,2279.6,14.87948761]
[1750567313389,0.22899682,2279.7,2279.6,15.71203321]
[1750567314565,0.22899682,2279.7,2279.6,18.77195921]
[1750567315901,0.22899682,2279.7,2279.6,17.93941361]
[1750567316898,0.79100051,2280.3,2279.9,0.55]
[1750567316899,30.0,2280.2,2279.9,0.55]
[1750567317088,30.0,2280.2,2279.7,3.5092165]
[1750567317089,40.0,2280.0,2279.7,3.5092165]
[1750567317288,40.0,2279.8,2279.6,6.56928454]
[1750567317494,30.0,2279.8,2279.6,6.56928454]
[1750567317803,30.0,2279.8,2279.7,0.55]
[1750567318700,30.0,2279.8,2279.7,4.05923367]
[1750567321012,0.40922138,2279.8,2279.7,4.05923367]
[1750567321716,0.40924376,2279.8,2279.7,4.05923367]
[1750567322090,7.76424376,2279.8,2279.7,4.05923367]
[1750567323014,7.355,2279.8,2279.7,4.05923367]
[1750567323898,0.40928474,2279.8,2279.7,4.05923367]
[1750567324077,7.354,2279.8,2279.7,4.05923367]
[1750567324419,7.76341219,2279.8,2279.7,4.05923367]
[1750567325319,0.40941219,2279.8,2279.7,4.05923367]
[1750567325478,7.354,2279.8,2279.7,4.05923367]
[1750567325987,40.0,2280.1,2279.7,0.55]
[1750567326193,7.76363872,2280.0,2279.9,4.05879306]
[1750567326604,17.76363872,2280.0,2279.9,4.05879306]
[1750567326780,17.76369346,2280.0,2279.9,4.05879306]
[1750567327314,17.76369346,2280.0,2279.0,0.7515]
[1750567327315,33.50922714,2279.8,2279.0,0.7515]
[1750567327519,8.54491047,2279.5,2279.3,3.50975784]
[1750567327681,7.7957799,2279.4,2279.2,3.50995002]
[1750567328024,0.40977939,2279.3,2279.2,3.50995002]
[1750567328181,0.40977939,2279.3,2279.1,3.51009256]
[1750567328380,0.40977939,2279.3,2279.1,3.51015745]
[1750567328822,0.40977939,2279.3,2279.2,3.51000351]
[1750567329014,0.40977939,2279.3,2279.2,4.06000351]
[1750567329218,8.54491047,2279.5,2279.2,4.06000351]
[1750567329219,30.0,2279.6,2279.3,0.55]
[1750567329418,7.79609238,2279.5,2279.4,3.50968447]
[1750567329796,7.79610825,2279.5,2279.4,3.50968447]
[1750567329990,7.38600051,2279.5,2279.4,3.50968447]
[1750567330209,7.79610418,2279.5,2279.4,3.50968447]
[1750567330417,7.76310367,2279.5,2279.4,4.05968447]
[1750567331506,7.76309184,2279.5,2279.4,4.05968447]
[1750567332117,7.76309184,2279.5,2279.4,0.55]
[1750567332393,9.13260924,2279.5,2279.4,0.55]
[1750567332606,7.76332116,2279.5,2279.2,3.50993772]
[1750567332825,0.41032116,2279.4,2279.3,3.50984951]
[1750567332986,0.41032336,2279.4,2279.3,3.50984951]
[1750567333191,7.76232336,2279.4,2279.3,3.50984951]
[1750567333489,0.41032336,2279.4,2279.3,4.05984951]
[1750567333689,7.76232336,2279.4,2279.3,4.05984951]
[1750567334127,7.352,2279.4,2279.3,4.05984951]
[1750567334330,7.76231692,2279.4,2279.3,4.05984951]
[1750567335198,7.76230683,2279.4,2279.3,4.05984951]
[1750567335394,0.41053193,2279.4,2279.3,4.05984951]
[1750567335691,0.41053193,2279.4,2279.3,5.62209241]
[1750567336231,7.5810386,2279.9,2279.8,3.50907974]
[1750567336525,7.99156529,2279.9,2279.8,3.50907974]
[1750567336732,7.99156529,2279.9,2279.8,4.05907974]
[1750567337350,0.63956529,2279.9,2279.8,4.05907974]
[1750567338049,0.63951774,2279.9,2279.8,4.05907974]
[1750567338708,0.63955704,2279.9,2279.8,4.05907974]
[1750567339339,0.63952156,2279.9,2279.8,4.05907974]
[1750567339851,0.63952156,2279.9,2279.8,0.55]
[1750567340012,11.51405687,2279.9,2279.8,0.55]
[1750567340647,11.10358076,2279.9,2279.8,0.55]
[1750567340941,11.51409905,2279.9,2279.8,0.55]
[1750567341406,11.10358076,2279.9,2279.8,0.55]
[1750567341606,11.5140487,2279.9,2279.8,0.55]
[1750567342139,10.63950654,2279.9,2279.8,0.55]
[1750567342442,0.63950654,2279.9,2279.8,4.05907974]
[1750567342611,7.98950654,2279.9,2279.8,4.05907974]
[1750567343643,7.98962001,2279.9,2279.8,4.05907974]
[1750567343941,7.5790386,2279.9,2279.8,0.55]
[1750567344145,8.74752519,2279.9,2279.8,0.55]
[1750567344447,8.74753633,2279.9,2279.8,0.55]
[1750567345031,8.7475367,2279.9,2279.8,0.55]
[1750567345541,8.7475367,2279.9,2279.4,3.850226]
[1750567345756,1.26048854,2279.8,2279.6,0.55]
[1750567346059,0.41069282,2279.7,2279.5,0.55]
[1750567346214,0.41069282,2279.6,2279.5,4.0595271]
[1750567347144,8.33694246,2279.9,2279.6,3.50934307]
[1750567347354,0.41068907,2279.8,2279.6,3.50934307]
[1750567347530,0.41068907,2279.7,2279.6,4.05934307]
[1750567348153,0.41068907,2279.7,2279.6,0.55]
[1750567348628,10.41068907,2279.7,2279.6,0.55]
[1750567348830,0.41068907,2279.7,2279.6,0.55]
[1750567349520,0.41068907,2279.7,2279.6,4.05938761]
[1750567349719,8.33694246,2279.9,2279.7,3.50914809]
[1750567349916,0.41073857,2279.8,2279.7,4.05914809]
[1750567350123,0.2290386,2279.9,2279.8,0.55]
[1750567350319,7.98777496,2279.9,2279.5,0.55]
[1750567350528,40.0,2279.7,2279.5,4.05945883]
[1750567350817,0.41074462,2279.6,2279.5,4.05945883]
[1750567351247,0.41074462,2279.6,2279.4,0.55]
[1750567351551,7.75874462,2279.5,2279.4,0.55]
[1750567351714,7.75875967,2279.5,2279.3,0.55]
[1750567351914,0.41075967,2279.4,2279.3,0.55]
[1750567352120,0.41075092,2279.4,2279.3,0.55]
[1750567352636,0.41075092,2279.4,2279.3,4.05984951]
[1750567352819,30.0,2279.2,2278.6,0.7625]
[1750567353022,7.75780659,2279.1,2278.6,0.7625]
[1750567353225,0.41080659,2279.0,2278.6,0.7625]
[1750567353529,0.41080659,2279.0,2278.9,0.6341766]
[1750567353857,7.347,2279.1,2279.0,0.55]
[1750567354074,30.0,2279.0,2278.9,0.0841766]
[1750567354247,30.41084489,2279.0,2278.9,0.0841766]
[1750567354427,31.19144489,2279.0,2278.9,0.0841766]
[1750567354822,34.70117341,2279.0,2278.9,0.0841766]
[1750567355040,39.09552228,2279.0,2278.9,0.0841766]
[1750567355742,38.68526041,2279.0,2278.9,0.0841766]
[1750567355948,39.09555847,2279.0,2278.9,0.0841766]
[1750567356762,35.58524693,2279.0,2278.9,0.0841766]
[1750567357252,41.75729806,2279.0,2278.9,0.0841766]
[1750567358022,34.41029806,2279.0,2278.9,0.0841766]
[1750567358222,11.75729806,2279.0,2278.9,0.0841766]
[1750567358423,41.75729806,2279.0,2278.9,0.0841766]